[Event "Rosh Hashanah Rapid 2022"]
[Site "Ramat Gan"]
[Date "2022.09.25"]
[Round "6.3"]
[White "Levin, Guy"]
[Black "Zanan, Evgeny"]
[Result "1/2-1/2"]
[ECO "E03"]
[WhiteElo "2382"]
[BlackElo "2485"]
[Annotator "TA"]
[PlyCount "142"]
[EventDate "2022.09.25"]
[EventType "rapid"]
[EventCountry "ISR"]
[SourceTitle "playchess.com"]
[Source "ChessBase"]
[SourceQuality "1"]
[TimeControl "900+5"]

{[%evp 17,142,-42,-41,-49,-49,-69,-31,-37,-27,-116,-110,-110,0,0,14,7,12,18,16,0,31,21,29,22,18,27,39,38,40,-75,-74,-67,-64,-154,-133,-133,-118,-127,-116,-119,-98,-121,-114,-115,-120,-126,-118,-123,-125,-137,-146,-143,-110,-119,-29,-29,-31,-26,-15,-7,0,0,0,0,0,0,0,0,0,0,0,0,0,0,0,0,0,0,0,0,0,0,33,33,33,33,33,0,109,109,406,435,432,421,411,109,109,0,386,0,109,0,329,0,109,109,442,109,109,109,109,109,109,40,56,56,56,56,56,0,69,56,56,0,0,0,76]} 1. Nf3 {[%emt 0:00:01]} d5 {[%emt 0:00:03]} 2. c4 {[%emt 0:00:01]} e6 {[%emt 0:00:02]} 3. g3 {[%emt 0:00:01]} dxc4 {[%emt 0:00:07]} 4. Qa4+ {[%emt 0:00:05]} Nd7 {[%emt 0:00:03]} 5. Qxc4 {[%emt 0:00:01]} a6 {[%emt 0:00:07]} 6. Bg2 {[%emt 0:00:15]} b5 {[%emt 0:00:40]} 7. Qc2 {[%emt 0:00:02]} Bb7 {[%emt 0:00:01]} 8. d4 {[%emt 0:00:07]} Ngf6 {[%emt 0:00:02]} 9. O-O {[%emt 0:00:02]} c5 {[%emt 0:00:03]} 10. Rd1 {[%emt 0:01:08] E03: Open Catalan: 5 Qa4+ Nbd7 6 Qxc4.} Rc8 {[%emt 0:00:25]} 11. Qd2 {[%emt 0:01:11]} Qb6 {[%emt 0:01:02] [#]} 12. b3 $146 {[%emt 0:01:04] Black is slightly better.} ({Predecessor:} 12. a3 cxd4 13. Nxd4 Bxg2 14. Kxg2 Bc5 15. Nc3 O-O 16. f3 Rfd8 17. Nb3 Bf8 18. Qe3 {1-0 (59) Romanov,K (2023)-Marn,J (2292) Tornelo INT 2021}) 12... Ne4 {[%emt 0:03:10]} 13. Qe1 {[%emt 0:00:41]} (13. dxc5 $11 Nxd2 14. cxb6 Nxf3+ 15. exf3) 13... cxd4 $17 {[%emt 0:00:14]} 14. Nxd4 {[%emt 0:00:27] [#]} Bc5 {[%emt 0:00:12]} (14... Rxc1 $1 $17 {[%mdl 512]} 15. Rxc1 Qxd4) 15. Be3 $1 $11 {[%emt 0:00:10]} b4 {[%emt 0:01:14]} 16. Nd2 {[%emt 0:00:57]} Nxd2 {[%emt 0:02:13]} 17. Bxb7 {[%emt 0:00:03]} Qxb7 {[%emt 0:00:03]} 18. Qxd2 {[%emt 0:00:14]} Nf6 {[%emt 0:00:09] [#]} 19. Nxe6 $1 {[%emt 0:04:26]} fxe6 {[%emt 0:01:32]} (19... Bxe3 $2 20. Nxg7+ (20. Qxe3 fxe6 21. Qxe6+ Kf8 $15) 20... Kf8 21. Qxe3 $18) 20. Bxc5 {[%emt 0:00:01]} Ne4 {[%emt 0:00:06]} 21. Qd4 {[%emt 0:03:10]} Nxc5 {[%emt 0:00:35]} 22. Rac1 {[%emt 0:00:01]} Qe7 {[%emt 0:00:55]} 23. Rc4 {[%emt 0:00:28]} (23. Rc2 $14 {stays ahead.}) 23... O-O $17 {[%emt 0:00:15]} 24. Rdc1 {[%emt 0:00:01][%cal Rc4c5]} Rfd8 {[%emt 0:00:37][%cal Bf8d8,Bd8d1,Bd1d5,Bd5d2][%mdl 32]} 25. Qb2 {[%emt 0:00:43]} (25. Qh4 $15 g5 26. Qh6) 25... Rc7 {[%emt 0:00:46]} 26. Rxb4 {[%emt 0:01:03]} Rcd7 {[%emt 0:01:00][%cal Oc5d3]} 27. Rbc4 {[%emt 0:00:01]} Nb7 {[%emt 0:00:28]} 28. Qe5 {[%emt 0:00:26]} Rd1+ {[%emt 0:00:30]} 29. Rxd1 {[%emt 0:00:03]} Rxd1+ {[%emt 0:00:01]} 30. Kg2 {[%emt 0:00:01]} Nd6 {[%emt 0:00:06]} 31. Rc6 {[%emt 0:00:13]} Qb7 {[%emt 0:00:21]} 32. Qc5 {[%emt 0:00:12]} Rd5 {[%emt 0:00:14]} 33. Qc2 {[%emt 0:00:16] [#]} Rd2 $3 {[%emt 0:00:20][%mdl 512]} 34. Qc5 {[%emt 0:00:09]} Ne8 {[%emt 0:00:03]} 35. e4 {[%emt 0:00:04] [#]} h6 {[%emt 0:00:10]} ({Black should try} 35... Rd4 $1 $17 {[%mdl 512]} 36. Qb6 (36. Rxe6 Rxe4) 36... Qxb6 37. Rxb6 Rxe4) 36. Rxe6 $11 {[%emt 0:00:03]} Nf6 {[%emt 0:00:09]} 37. Re7 {[%emt 0:00:04] Against Qf7} Rd7 {[%emt 0:00:03]} 38. Rxd7 {[%emt 0:00:08]} Qxd7 {[%emt 0:00:00]} 39. Qc4+ {[%emt 0:00:00]} Kh7 {[%emt 0:00:05]} 40. Qxa6 {[%emt 0:00:15]} Qd4 {[%emt 0:00:01]} 41. Qe6 {[%emt 0:00:03]} Nxe4 {[%emt 0:00:04]} 42. Qf5+ {[%emt 0:00:01]} Kg8 {[%emt 0:00:02]} 43. Qe6+ {[%emt 0:00:01]} Kh8 {[%emt 0:00:07]} 44. Qc8+ {[%emt 0:00:03]} Kh7 {[%emt 0:00:06]} 45. Qf5+ {[%emt 0:00:01]} Kg8 {[%emt 0:00:07]} 46. Qe6+ {[%emt 0:00:02]} Kh8 {[%emt 0:00:02]} 47. Qc8+ {[%emt 0:00:09]} Kh7 {[%emt 0:00:02]} 48. Qf5+ {[%emt 0:00:02]} Kh8 {[%emt 0:00:04]} 49. a4 {[%emt 0:00:15][%cal Ba2a4,Ba4a5,Ba5a6][%mdl 32]} Nd6 {[%emt 0:00:19]} 50. Qf8+ {[%emt 0:00:05][%mdl 1024] White has compensation.} Kh7 {[%emt 0:00:01]} 51. Qf3 {[%emt 0:00:01]} Qb4 {[%emt 0:00:12]} 52. h4 {[%emt 0:00:06][%cal Oa4a5]} (52. a5 $5) 52... Kg8 {[%emt 0:00:04]} (52... Nb7 $11 {remains equal.}) 53. Qd5+ $16 {[%emt 0:00:02]} Kf8 $2 {[%emt 0:00:04][%mdl 8192]} (53... Kh8 $16 {was worth a try.}) 54. a5 $18 {[%emt 0:00:04]} Ke7 {[%emt 0:00:03]} 55. a6 $1 {[%emt 0:00:06]} Qb6 {[%emt 0:00:02]} 56. Qe5+ $2 {[%emt 0:00:06]} (56. a7 Qxa7 57. Qe5+ Kf7 $16) (56. Qa8 $1 $18 {And now a7 would win.} Ne8 57. a7) 56... Kf7 $16 {[%emt 0:00:12]} 57. Qd5+ $2 {[%emt 0:00:14][%mdl 8192]} (57. a7 $16 Qxa7 58. Qxd6) 57... Ke7 $18 {[%emt 0:00:01] [#]} 58. Qe5+ $2 {[%emt 0:00:01]} ({Weaker is} 58. a7 Qxa7 59. Qe5+ Kf7 $16) (58. Qa8 $1 $18 {is the precise move to win. Hoping for a7.} Ne8 59. a7) 58... Kf7 $1 $16 {[%emt 0:00:00]} 59. Qd5+ $2 {[%emt 0:00:00]} (59. a7 $16 Qxa7 60. Qxd6) 59... Ke7 $18 {[%emt 0:00:01] [#]} 60. Qe5+ $2 {[%emt 0:00:09]} ({Not} 60. a7 Qxa7 61. Qe5+ Kf7 $16) (60. Qa8 $1 $18 {and the rest is easy. Threatens to win with a7.} Kd7 61. a7) 60... Kf7 $1 $16 {[%emt 0:00:10]} 61. a7 {[%emt 0:00:11]} Qb7+ $2 {[%emt 0:00:14][%mdl 8192]} (61... Qxa7 $16 {is more resistant.} 62. Qxd6 Qb7+ 63. Kh2 Qxb3 64. Qf4+ Kg8) 62. f3 $2 {[%emt 0:00:06]} (62. Kg1 $18 {Qa5 is the strong threat.} Qxa7 63. Qxd6) 62... Qxa7 {[%emt 0:00:04]} 63. Qxd6 {[%emt 0:00:04][%mdl 4096] Endgame KQ-KQ} Qa2+ {[%emt 0:00:01]} 64. Kh3 {[%emt 0:00:02] Strongly threatening Qd5+.} Qxb3 {[%emt 0:00:01]} 65. f4 {[%emt 0:00:06]} ({White should play} 65. Qd7+ $16 Kf6 66. Qc6+ Kf7 67. Kg4) 65... Qb1 {[%emt 0:00:10]} 66. Qd5+ {[%emt 0:00:08]} Kf8 {[%emt 0:00:01]} 67. Qd8+ {[%emt 0:00:01]} Kf7 {[%emt 0:00:01]} 68. Qd5+ {[%emt 0:00:01]} Kf8 $1 {[%emt 0:00:01]} 69. h5 {[%emt 0:00:08]} Qf1+ {[%emt 0:00:02]} 70. Kh2 {[%emt 0:00:06]} (70. Kg4 $14) 70... Qe2+ $1 $11 {[%emt 0:00:01]} 71. Kh3 {[%emt 0:00:02]} (71. Kg1 $11) 71... Qf1+ $1 {[%emt 0:00:01] Quite a comeback for White.  Weighted Error Value: White=0.33/Black=0.21 (precise)} 1/2-1/2

[Event "Rosh Hashanah Rapid 2022"]
[Site "Ramat Gan"]
[Date "2022.09.25"]
[Round "6.4"]
[White "Zemach, Nadav"]
[Black "Aizenberg, Benny"]
[Result "1-0"]
[ECO "A88"]
[WhiteElo "2238"]
[BlackElo "2412"]
[Annotator "TA"]
[PlyCount "99"]
[EventDate "2022.09.25"]
[EventType "rapid"]
[EventCountry "ISR"]
[SourceTitle "playchess.com"]
[Source "ChessBase"]
[SourceQuality "1"]
[TimeControl "900+5"]

{[%evp 15,98,29,23,2,40,19,18,-17,-14,-13,-17,-16,0,0,15,6,11,17,20,0,2,0,3,0,7,0,50,52,49,51,114,90,167,178,173,190,188,44,52,58,76,84,77,71,159,70,251,121,115,0,233,0,116,118,120,82,102,0,129,0,58,58,102,97,398,51,49,52,94,83,95,54,91,91,111,59,58,50,52,46,975,955,5073,5065,29999]} 1. d4 {[%emt 0:00:01]} f5 {[%emt 0:00:01]} 2. c4 {[%emt 0:00:02]} Nf6 {[%emt 0:00:01]} 3. g3 {[%emt 0:00:00]} g6 {[%emt 0:00:00]} 4. Bg2 {[%emt 0:00:01]} Bg7 {[%emt 0:00:01]} 5. Nc3 {[%emt 0:00:01]} O-O {[%emt 0:00:02]} 6. Nf3 {[%emt 0:00:01]} d6 {[%emt 0:00:00]} 7. O-O {[%emt 0:00:02]} c6 {[%emt 0:00:01] now scores much better than the old 7...Qe8.} 8. Re1 {[%emt 0:00:20]} Na6 {[%emt 0:00:06]} 9. Qb3 {[%emt 0:00:30] A88: Dutch Defence: Leningrad System: 5 Nf3 0-0 6 0-0 d6 7 Nc3 c6.} Ne4 {[%emt 0:01:24] [#]} 10. Bf4 $146 {[%emt 0:00:21]} ({Predecessor:} 10. Be3 Nxc3 11. Qxc3 Qe8 12. Qc1 e5 13. Bh6 e4 14. Bxg7 Kxg7 15. Nd2 Be6 16. Qc3 d5 {0-1 (42) Pakleza,Z (2520)-Kuzubov,Y (2638) Abu Dhabi 2015}) 10... Qb6 {[%emt 0:00:45]} 11. Rad1 {[%emt 0:00:08] The position is equal.} Qxb3 {[%emt 0:00:09]} 12. axb3 {[%emt 0:00:01]} Nb4 {[%emt 0:00:01]} 13. Rc1 {[%emt 0:00:22]} c5 {[%emt 0:00:59]} 14. Be3 {[%emt 0:00:38][%cal Bf4e3,Be3d4,Bd4c3][%mdl 32]} cxd4 {[%emt 0:00:37]} 15. Nxd4 {[%emt 0:00:33]} Nc5 {[%emt 0:00:03] Strongly threatening ...Bxd4.} 16. Nd5 {[%emt 0:01:26]} Nxd5 {[%emt 0:00:15]} (16... Bxd4 {with more complications.} 17. Bxd4 Nxb3 18. Nxe7+ Kf7) 17. Bxd5+ {[%emt 0:00:05]} e6 {[%emt 0:00:33]} 18. Bf3 {[%emt 0:00:06]} Bxd4 {[%emt 0:01:20]} 19. Bxd4 {[%emt 0:00:01]} Nxb3 {[%emt 0:00:02]} 20. Rcd1 {[%emt 0:00:01]} e5 {[%emt 0:02:45]} (20... Na5 $11) 21. Bd5+ $14 {[%emt 0:00:04]} Kg7 {[%emt 0:00:01]} 22. Bc3 {[%emt 0:00:01]} f4 {[%emt 0:01:05]} (22... Nc5 $14) 23. Bf3 {[%emt 0:00:18] A strong pair of Bishops.} Rf6 {[%emt 0:00:02]} (23... fxg3 $16 24. hxg3 Rf6) 24. gxf4 $18 {[%emt 0:12:02]} Rxf4 {[%emt 0:00:48]} 25. Rxd6 {[%emt 0:00:00]} Nd4 {[%emt 0:00:01]} 26. Rd1 {[%emt 0:00:00]} (26. Bd5 $1 $18) 26... Nxf3+ $14 {[%emt 0:02:15]} 27. exf3 {[%emt 0:00:00]} Rxc4 {[%emt 0:00:01]} 28. Bxe5+ {[%emt 0:00:00]} Kh6 {[%emt 0:00:01]} 29. Rd8 {[%emt 0:00:00]} b5 {[%emt 0:00:46]} (29... a5 $142) 30. Bd4 {[%emt 0:00:00] White has more active pieces.} (30. Rf8 $1 $16) 30... a5 $2 {[%emt 0:01:55]} (30... Rb8 $14) 31. Be3+ {[%emt 0:00:00]} (31. Rg8 $1 $18 {is the precise move to win. Be3+ is the strong threat.} Kg5 32. Be3+ Kf6 33. Rdd8) 31... Kg7 $16 {[%emt 0:00:15]} 32. Bd4+ {[%emt 0:00:00]} (32. Re8 $1 $16) 32... Kh6 $1 $18 {[%emt 0:00:12]} 33. Be3+ {[%emt 0:00:00]} (33. Rg8 $1 $18 {Threatens to win with Be3+.} Kg5 34. Be3+ Kf5 35. Rf8+ Ke5 36. Rdd8) 33... Kg7 $16 {[%emt 0:00:01]} 34. Re8 $1 {[%emt 0:00:00]} Ra6 {[%emt 0:00:48]} 35. Rdd8 {[%emt 0:00:00]} Be6 {[%emt 0:00:26]} 36. Bg5 {[%emt 0:00:00]} (36. Re7+ $16 Kf6 37. Rxh7) 36... Rc5 {[%emt 0:00:08]} (36... Rc7 $11 {keeps the balance.}) 37. h4 {[%emt 0:00:00]} (37. Re7+ $16 Bf7 38. Be3) 37... Bf7 {[%emt 0:00:05]} (37... Rc7 $11) 38. Re7 $14 {[%emt 0:00:00]} Re6 {[%emt 0:00:01][%cal Oc5g5] [#]} 39. Ra7 $1 {[%emt 0:00:00] Black must now prevent Be3.} b4 $2 {[%emt 0:00:11][%mdl 8192]} (39... Ree5 $16) 40. Rdd7 $2 {[%emt 0:00:00]} ({Better is} 40. Be3 $18 Rf5 41. Bd4+ Kh6 42. Rdd7) 40... Rf5 {[%emt 0:00:01]} 41. Kg2 {[%emt 0:00:00]} h6 {[%emt 0:00:02]} 42. Be3 {[%emt 0:00:00] And now Ra8 would win.} g5 {[%emt 0:00:12]} 43. h5 {[%emt 0:00:01]} Kf8 {[%emt 0:00:03]} 44. Bd4 {[%emt 0:00:13]} Ke8 {[%emt 0:00:10] [#]} 45. Rdb7 {[%emt 0:00:11]} ({White should play} 45. Bc5 $1 $16 {[%cal Od7b7][%mdl 512] aiming for Rdb7!} Rxc5 46. Rxf7) 45... Kf8 $1 {[%emt 0:00:04]} 46. Rb8+ {[%emt 0:00:14]} Re8 {[%emt 0:00:01]} 47. Rb6 {[%emt 0:00:04]} Bxh5 $2 {[%emt 0:00:07][%mdl 8192]} (47... Re6 $14) 48. Rxh6 $18 {[%emt 0:00:10][%cal Rh6h8]} Bxf3+ {[%emt 0:00:10]} 49. Kg3 {[%emt 0:00:01][%cal Rh6h8]} Rf7 {[%emt 0:00:05]} 50. Rh8# {[%emt 0:01:04] Weighted Error Value: White=0.51/Black=0.54} 1-0

[Event "Rosh Hashanah Rapid 2022"]
[Site "Ramat Gan"]
[Date "2022.09.25"]
[Round "6.5"]
[White "Levitan, Tal"]
[Black "Parkhov, Yair"]
[Result "0-1"]
[ECO "B06"]
[WhiteElo "2212"]
[BlackElo "2479"]
[Annotator "TA"]
[PlyCount "94"]
[EventDate "2022.09.25"]
[EventType "rapid"]
[EventCountry "ISR"]
[SourceTitle "playchess.com"]
[Source "ChessBase"]
[SourceQuality "1"]
[TimeControl "900+5"]

{[%evp 10,94,58,43,58,61,49,52,63,55,48,58,84,72,86,83,84,80,129,141,124,101,128,124,114,6,142,98,111,99,82,-6,-14,-14,0,-10,-15,-54,-52,-64,-55,-66,-72,-60,-56,-88,-87,-91,-87,-108,-101,-91,-74,-70,-27,-74,-73,-87,-58,-82,-76,-370,-360,-393,-335,-301,-315,-759,-674,-779,-762,-742,-735,-1225,-393,-1964,-2053,-1916,-1644,-12842,-12843,-12843,-12843,-12845,-12845,-12846,-12847]} 1. e4 {[%emt 0:00:02]} g6 {[%emt 0:00:03]} 2. d4 {[%emt 0:00:04]} Bg7 {[%emt 0:00:02]} 3. Nf3 {[%emt 0:00:02]} d6 {[%emt 0:00:01]} 4. Nc3 {[%emt 0:00:07]} a6 {[%emt 0:00:02]} 5. Be2 {[%emt 0:00:10]} b5 {[%emt 0:00:08]} 6. O-O {[%emt 0:00:05]} Nd7 {[%emt 0:00:12] B06: Modern Defence.} 7. Re1 {[%emt 0:00:03]} Bb7 {[%emt 0:00:13]} 8. a4 {[%emt 0:00:03] The main line 8.a4 scores better than 8.Bf1.} b4 {[%emt 0:00:06] White is slightly better.} 9. Na2 {[%emt 0:00:01]} a5 {[%emt 0:00:52]} 10. c3 {[%emt 0:00:02] [#]} Bxe4 $146 {[%emt 0:01:10]} ({Predecessor:} 10... bxc3 11. Nxc3 e6 12. Bg5 Ne7 13. Rc1 h6 14. Bd2 c6 15. d5 cxd5 16. Nb5 O-O 17. Nxd6 {½-½ (53) Makhnev,D (2513)-Nakamura,H (2736) Chess.com INT 2021}) 11. cxb4 {[%emt 0:00:44]} Ngf6 {[%emt 0:00:02]} 12. bxa5 {[%emt 0:00:11]} Rxa5 {[%emt 0:00:21]} 13. Nc3 {[%emt 0:01:26]} O-O {[%emt 0:01:45]} ({Black should play} 13... Ba8) 14. Nxe4 $16 {[%emt 0:02:07]} Nxe4 {[%emt 0:00:01]} 15. Bb5 {[%emt 0:00:02]} d5 {[%emt 0:00:23]} 16. b4 {[%emt 0:01:04] Inhibits c5.} Ra7 {[%emt 0:00:06][%cal Oc7c5]} 17. Qb3 {[%emt 0:00:02]} ({Better is} 17. Be3 $16) 17... e6 {[%emt 0:00:06]} (17... c5 $1 $11) 18. Bf4 {[%emt 0:01:05]} g5 {[%emt 0:00:17] [#]} 19. Nxg5 {[%emt 0:02:03][%mdl 512]} Nxg5 {[%emt 0:00:17]} 20. Bxg5 {[%emt 0:00:02]} (20. Bxd7 $16 {Black must now prevent Bc6.} Ne4 21. Bc6) 20... Qxg5 $11 {[%emt 0:00:02]} 21. Bxd7 {[%emt 0:00:05]} c5 {[%emt 0:00:44] ...c4 is the strong threat.} ({Of course not} 21... Bxd4 $6 22. Ra2 $15) 22. Bb5 {[%emt 0:00:25]} Bxd4 {[%emt 0:00:03]} 23. Rad1 {[%emt 0:00:36]} c4 {[%emt 0:00:10]} 24. Qf3 {[%emt 0:00:41]} Bg7 {[%emt 0:00:07] Black is more active.} 25. g3 {[%emt 0:00:20]} Rb8 {[%emt 0:00:21]} 26. h4 {[%emt 0:00:07]} Qf6 {[%emt 0:00:06]} 27. Qe3 {[%emt 0:00:15]} Rc7 {[%emt 0:00:15]} 28. Qe2 {[%emt 0:00:32]} Qb2 {[%emt 0:00:26]} 29. Qxb2 {[%emt 0:02:03]} Bxb2 {[%emt 0:00:02]} 30. Re2 {[%emt 0:00:01]} c3 {[%emt 0:00:13]} 31. Rc2 {[%emt 0:00:15]} Rcb7 {[%emt 0:01:19]} 32. Rd4 {[%emt 0:00:30]} (32. f3 $11 {deserves consideration.}) 32... Kf8 $17 {[%emt 0:00:13]} 33. Kf1 {[%emt 0:00:22]} Ke7 {[%emt 0:00:03]} 34. Ke2 {[%emt 0:00:55]} Kd6 {[%emt 0:00:02]} 35. Kd1 $2 {[%emt 0:00:15][%mdl 8192] [#] White does not recover from this.} (35. f3 $17 {was called for.}) 35... e5 $1 $19 {[%emt 0:00:17][%cal Be6e5,Be5e4][%mdl 32]} 36. Rg4 {[%emt 0:00:14]} e4 {[%emt 0:00:31]} 37. Rf4 {[%emt 0:00:01]} Ke5 {[%emt 0:00:13]} 38. Re2 $2 {[%emt 0:00:04]} (38. f3 f5 39. fxe4 fxe4 40. Rcf2) 38... f5 {[%emt 0:00:07]} 39. Kc2 {[%emt 0:00:44]} Rxb5 {[%emt 0:00:49]} 40. axb5 {[%emt 0:00:04][%mdl 4096] Endgame KRR-KRB} d4 {[%emt 0:00:02] ( -> ...d3+)} 41. Kb3 {[%emt 0:00:17]} Bc1 $2 {[%emt 0:00:19]} (41... d3 42. Re1 Rxb5) 42. Ra2 {[%emt 0:00:18]} (42. Rf3 Rxb5 43. Rd3) 42... Bxf4 {[%emt 0:00:54] Black is clearly winning.} 43. gxf4+ {[%emt 0:00:01]} Kxf4 {[%emt 0:00:02] Hoping for ...e3.} 44. Kc4 {[%emt 0:00:01]} Rc8+ {[%emt 0:00:04]} 45. Kxd4 {[%emt 0:00:12]} c2 {[%emt 0:00:03]} 46. Rxc2 {[%emt 0:00:02]} Rxc2 {[%emt 0:00:01]} 47. b6 {[%emt 0:00:01]} Rc6 {[%emt 0:00:02] Weighted Error Value: White=0.73/Black=0.25 (precise)} 0-1

[Event "Rosh Hashanah Rapid 2022"]
[Site "Ramat Gan"]
[Date "2022.09.25"]
[Round "6.6"]
[White "Vagman, Roy"]
[Black "Gorodetzky, David"]
[Result "0-1"]
[ECO "B12"]
[WhiteElo "2287"]
[BlackElo "2495"]
[Annotator "TA"]
[PlyCount "108"]
[EventDate "2022.09.25"]
[EventType "rapid"]
[EventCountry "ISR"]
[SourceTitle "playchess.com"]
[Source "ChessBase"]
[SourceQuality "1"]
[TimeControl "900+5"]

{[%evp 9,108,-14,4,15,8,-22,29,22,17,-30,45,30,25,14,60,32,34,11,35,12,24,25,24,35,35,17,10,17,60,55,109,14,35,46,72,52,55,33,45,5,37,-9,0,0,26,-2,0,0,0,-425,-433,-538,-533,-519,-526,-545,-537,-533,-514,-595,-576,-689,-589,-609,-602,-598,-556,-687,-669,-655,-611,-743,-139,-188,-172,-736,-299,-927,-932,-1239,-1070,-1586,-1178,-1569,-3695,-2424,-1861,-4929,-4799,-29977,-29978,-29976,-29977,-29989,-29990,-29990,-29991,-29991,-29992,-29992,-29993]} 1. e4 {[%emt 0:00:02]} c6 {[%emt 0:00:02]} 2. d4 {[%emt 0:00:03]} d5 {[%emt 0:00:01]} 3. e5 {[%emt 0:00:02]} c5 {[%emt 0:00:58]} 4. dxc5 {[%emt 0:00:02]} e6 {[%emt 0:00:05]} 5. c3 {[%emt 0:00:05]} Nd7 {[%emt 0:00:47]} 6. Nf3 {[%emt 0:01:25] B12: Caro-Kann: Advance Variation.} Bxc5 {[%emt 0:00:05]} 7. Bd3 {[%emt 0:00:42]} Ne7 {[%emt 0:00:13] [#]} (7... f6 $142) 8. b4 $146 {[%emt 0:00:32] White has an edge.} ({Predecessor:} 8. Bf4 Ng6 9. Bg3 f6 10. exf6 Qxf6 11. Bxg6+ Qxg6 12. O-O O-O 13. Nbd2 Nf6 14. Ne5 {1-0 (35) Belikov,V (2495)-Zangiev,P (2344) Voronezh 1999}) 8... Bb6 {[%emt 0:00:05]} 9. Bf4 {[%emt 0:00:09]} (9. Qe2 {is more appropriate.}) 9... Ng6 {[%emt 0:00:49]} (9... a5 $11) 10. Bg3 $14 {[%emt 0:00:08]} a5 {[%emt 0:02:04]} 11. O-O {[%emt 0:00:40]} f6 {[%emt 0:00:58]} (11... O-O $11 {should be considered.}) 12. Bxg6+ {[%emt 0:02:56]} hxg6 {[%emt 0:00:02]} 13. Qd3 {[%emt 0:00:06]} Kf7 {[%emt 0:00:06]} 14. Nbd2 {[%emt 0:00:43]} axb4 {[%emt 0:02:31]} 15. cxb4 {[%emt 0:00:02]} g5 {[%emt 0:00:38] White must now prevent ...g4.} 16. exf6 {[%emt 0:02:07]} gxf6 {[%emt 0:00:05]} 17. Rfe1 {[%emt 0:00:06][%cal Oe1e6]} Nf8 {[%emt 0:00:36]} 18. a4 {[%emt 0:01:11][%cal Ba2a4,Ba4a5][%mdl 32]} Bd7 {[%emt 0:00:20]} 19. a5 {[%emt 0:00:22]} Bc7 {[%emt 0:00:58]} (19... Ba7 $14) 20. Qc3 {[%emt 0:00:35]} (20. Nb3 $16) 20... Bxg3 {[%emt 0:00:16]} 21. fxg3 {[%emt 0:00:16]} Ng6 {[%emt 0:00:16]} 22. Rf1 {[%emt 0:00:25]} Kg8 {[%emt 0:00:28]} 23. Rac1 {[%emt 0:01:04]} Rh7 {[%emt 0:00:22]} 24. Qd3 {[%emt 0:00:12]} Rg7 {[%emt 0:00:20]} (24... Ne7 $5 {[%cal Re6e5]}) 25. Qe2 {[%emt 0:01:30]} (25. Rf2 $14 {was preferrable.}) 25... Qe7 {[%emt 0:00:27]} 26. Rc5 {[%emt 0:00:15]} Qd6 {[%emt 0:00:29]} 27. Rd1 {[%emt 0:00:21]} g4 {[%emt 0:00:55]} 28. Nd4 {[%emt 0:00:18]} Ne5 {[%emt 0:00:25]} 29. Ne4 $2 {[%emt 0:00:46][%mdl 8192] Black continues to play with concentration.} dxe4 $19 {[%emt 0:01:05]} 30. Nf5 {[%emt 0:00:01] [#]} Qxc5+ {[%emt 0:00:09][%mdl 512]} 31. bxc5 {[%emt 0:00:07]} exf5 {[%emt 0:00:02]} 32. Qa2+ {[%emt 0:00:12]} Kh7 {[%emt 0:00:09]} 33. Rd6 {[%emt 0:00:05]} Rf7 {[%emt 0:00:35]} 34. Kf2 {[%emt 0:00:10]} Kg7 {[%emt 0:00:03]} 35. h3 {[%emt 0:00:07]} Nd3+ {[%emt 0:00:13]} 36. Kg1 {[%emt 0:00:03]} gxh3 {[%emt 0:00:07]} 37. gxh3 {[%emt 0:00:05]} Bc6 {[%emt 0:00:03]} 38. Qd2 {[%emt 0:00:07]} Re8 {[%emt 0:00:05][%cal Oe4e3]} 39. Qe3 {[%emt 0:00:05]} Re5 {[%emt 0:00:05]} 40. a6 {[%emt 0:00:03]} Nxc5 {[%emt 0:00:08]} ({Less strong is} 40... f4 41. gxf4 Re8 42. axb7 Rxb7 43. Rxc6 $18) (40... Rxc5 $19 {is more deadly.} 41. a7 Ra5) 41. a7 $17 {[%emt 0:00:05]} Rf8 {[%emt 0:00:03] Threatens to win with ...Ra8.} 42. Qa3 $2 {[%emt 0:00:10]} (42. g4) 42... Ba4 {[%emt 0:00:03]} (42... e3 $142 43. Rd1 e2) 43. Rb6 $2 {[%emt 0:00:06]} (43. Qe3 Ra8 44. g4 Rxa7 45. g5) 43... Ra8 $19 {[%emt 0:00:03]} 44. h4 {[%emt 0:00:07]} Rxa7 {[%emt 0:00:02] ...e3 is the strong threat.} 45. h5 {[%emt 0:00:03]} Ra6 {[%emt 0:00:07]} 46. h6+ {[%emt 0:00:04]} Kxh6 {[%emt 0:00:02]} 47. Qe3+ {[%emt 0:00:02]} Kg6 {[%emt 0:00:02]} 48. Rb1 {[%emt 0:00:06]} Rd6 {[%emt 0:00:01] Hoping for ...Rd3.} 49. Qf2 {[%emt 0:00:09]} Rd1+ {[%emt 0:00:05] Black mates.} 50. Rxd1 {[%emt 0:00:01]} Bxd1 {[%emt 0:00:01]} 51. Qd2 {[%emt 0:00:01] [#]} e3 $1 {[%emt 0:00:06][%cal Be4e3,Be3e2][%mdl 32]} 52. Qd8 {[%emt 0:00:06]} (52. Qxd1 e2) 52... Bb3 {[%emt 0:00:05]} 53. Kf1 {[%emt 0:00:10]} e2+ {[%emt 0:00:02]} 54. Ke1 {[%emt 0:00:01]} Bc4 {[%emt 0:00:02] Weighted Error Value: White=0.48/Black=0.20 (precise)} 0-1